bitfinex-derivatives/quotes_SOLF0:USTF0_20250603
["timestamp","ask_amount","ask_price","bid_price","bid_amount"]
[1748949789790,41.05605435,161.04,161.02,6.2068]
[1748949790293,41.05605435,161.04,161.01,0.04741069]
[1748949790494,6.2066,161.03,161.01,6.25441069]
[1748949790692,34.84975435,161.04,161.01,0.04741069]
[1748949791289,6.2067,161.03,161.01,6.25461069]
[1748949792698,6.2067,161.03,161.01,0.04741069]
[1748949793595,6.2067,161.03,161.01,6.25451069]
[1748949794303,34.84975435,161.04,161.01,0.04741069]
[1748949794304,10.29655435,161.02,161.01,0.04741069]
[1748949796698,4.08975435,161.02,161.01,0.04741069]
[1748949796898,4.08975435,161.03,161.01,0.04741069]
[1748949797199,4.08975435,161.03,161.01,6.25451069]
[1748949798298,4.08975435,161.03,161.02,6.2068]
[1748949798499,4.08975435,161.03,161.01,0.04741069]
[1748949799202,4.08975435,161.02,161.01,0.04741069]
[1748949799903,30.76,161.04,161.01,0.04741069]
[1748949800099,4.08975435,161.03,161.01,0.04741069]
[1748949801002,4.08975435,161.02,161.01,0.04741069]
[1748949804097,10.29655435,161.02,161.01,0.04741069]
[1748949807203,6.2068,161.02,161.01,0.04741069]
[1748949807398,10.29655435,161.02,161.01,0.04741069]
[1748949812502,10.30975435,161.02,160.92,5.80268418]
[1748949812703,125.849,161.01,160.93,5.80268418]
[1748949812899,125.849,161.01,160.93,12.01288418]
[1748949812900,6.2092,160.96,160.93,12.01288418]
[1748949813100,30.74,161.0,160.93,5.80268418]
[1748949813306,0.04635307,160.98,160.95,0.04692752]
[1748949813805,6.2091,160.97,160.95,0.04692752]
[1748949814011,4.08975435,160.96,160.95,0.04692752]
[1748949814811,0.04635307,160.98,160.95,0.04692752]
[1748949815011,4.08975435,160.96,160.95,0.04692752]
[1748949816311,10.29885435,160.96,160.95,0.04692752]
[1748949816709,41.05885435,160.96,160.95,0.04692752]
[1748949816910,6.2101,160.94,160.91,6.2109]
[1748949817103,4.08975435,160.92,160.91,6.2109]
[1748949818199,4.08975435,160.92,160.9,6.25584697]
[1748949818401,4.08975435,160.91,160.9,0.04454697]
[1748949819407,10.30085435,160.91,160.9,0.04454697]
[1748949820014,4.08975435,160.91,160.9,0.04454697]
[1748949821314,6.39881839,160.91,160.9,0.04454697]
[1748949821714,12.60991839,160.91,160.9,0.04454697]
[1748949822509,6.39881839,160.91,160.9,0.04454697]
[1748949822710,0.04158217,160.93,160.9,0.04454697]
[1748949822910,0.04158217,160.93,160.92,6.2107]
[1748949825219,0.04158217,160.93,160.91,6.211]
[1748949825422,0.04158217,160.93,160.9,0.04454697]
[1748949825716,0.04158217,160.93,160.92,6.2107]
[1748949831027,0.04158217,160.93,160.92,12.60951839]
[1748949831827,30.98,160.96,160.92,6.39881839]
[1748949832333,30.98,160.96,160.94,6.2098]
[1748949832932,37.1892,160.96,160.93,6.24948504]
[1748949833630,6.2099,160.94,160.93,0.03938504]
[1748949835334,6.2099,160.94,160.93,0.00719252]
[1748949836839,12.60871839,160.94,160.93,0.00719252]
[1748949839127,6.2099,160.94,160.93,0.00719252]
[1748949845443,6.2104,160.93,160.9,6.2112]
[1748949845740,157.83881839,160.96,160.89,6.39881839]
[1748949846440,157.83881839,160.96,160.91,0.04261884]
[1748949846441,6.25165666,160.94,160.91,0.04261884]
[1748949846643,0.04155666,160.94,160.91,0.04261884]
[1748949847142,0.04155666,160.94,160.92,6.2104]
[1748949847847,6.25155666,160.94,160.92,6.2104]
[1748949848337,6.2104,160.93,160.91,0.04261884]
[1748949848644,0.04155666,160.94,160.91,0.04261884]
[1748949849041,6.25175666,160.94,160.92,6.2106]
[1748949849345,0.04155666,160.94,160.91,0.04261884]
[1748949849545,6.25165666,160.94,160.92,6.2104]
[1748949849741,0.04155666,160.94,160.92,6.2104]
[1748949850438,6.25175666,160.94,160.92,6.2104]
[1748949850643,6.25175666,160.94,160.91,6.25351884]
[1748949850941,0.04155666,160.94,160.91,0.04261884]
[1748949851340,0.04155666,160.94,160.92,6.2106]
[1748949851846,6.25155666,160.94,160.92,6.2106]
[1748949853449,0.04155666,160.94,160.92,6.2106]
[1748949857651,4.13357909,160.94,160.91,6.25351884]
[1748949857839,4.13357909,160.94,160.91,0.04261884]
[1748949858041,4.13357909,160.94,160.91,6.25351884]
[1748949858243,0.04155666,160.94,160.91,4.13464127]
[1748949858643,0.04155666,160.94,160.92,6.2107]
[1748949858951,0.04155666,160.94,160.92,10.30272243]
[1748949859149,0.04155666,160.94,160.92,6.2107]
[1748949861156,6.25155666,160.94,160.92,6.2107]
[1748949861353,4.13413645,160.94,160.91,0.04261884]
[1748949861559,6.2105,160.93,160.91,0.04261884]
[1748949861850,4.13413645,160.94,160.91,0.04261884]
[1748949861851,4.09257979,160.92,160.91,0.04261884]
[1748949862048,10.30447046,160.92,160.91,0.04261884]
[1748949862251,41.52447046,160.92,160.91,0.04261884]
[1748949862849,41.52447046,160.92,160.91,0.00779701]
[1748949863152,37.4307,160.92,160.91,0.00779701]
[1748949864058,37.61701201,160.92,160.85,5.80703084]
[1748949864356,37.61701201,160.92,160.83,8.41071201]
[1748949864357,37.61701201,160.92,160.88,6.2122]
[1748949864555,37.61701201,160.92,160.85,5.80703084]
[1748949864556,6.2112,160.91,160.85,5.80703084]
[1748949864751,6.2112,160.91,160.88,6.2121]
[1748949865058,6.25867068,160.91,160.88,6.25204331]
[1748949866454,6.2115,160.9,160.88,0.03994331]
[1748949868058,6.44448269,160.91,160.88,0.03994331]
[1748949868259,6.39701201,160.89,160.88,0.03994331]
[1748949868656,12.60881201,160.89,160.88,0.03994331]
[1748949872965,6.2131,160.86,160.81,5.80086089]
[1748949873161,6.2131,160.86,160.8,12.1978729]
[1748949873755,0.0409278,160.85,160.81,0.04296158]
[1748949875061,6.2545278,160.85,160.81,0.04296158]
[1748949875461,0.0409278,160.85,160.83,6.214]
[1748949875855,0.0409278,160.85,160.81,6.43997359]
[1748949876061,0.0409278,160.85,160.81,12.24083448]
[1748949876866,0.0409278,160.85,160.84,6.2138]
[1748949887175,4.13796988,160.85,160.81,0.04296158]
[1748949887481,0.0409278,160.85,160.82,4.09704208]
[1748949887674,0.0409278,160.85,160.84,6.2138]
[1748949891681,0.0409278,160.85,160.83,6.214]
[1748949892583,0.0409278,160.85,160.84,6.2138]
[1748949897495,0.0409278,160.85,160.83,6.214]
[1748949898188,6.2544278,160.85,160.83,6.214]
[1748949898590,0.0409278,160.85,160.84,6.2138]
[1748949900189,0.0409278,160.85,160.83,6.214]
[1748949900593,0.0409278,160.85,160.81,0.04296158]
[1748949900994,0.0409278,160.85,160.84,6.2138]
[1748949902090,0.0409278,160.85,160.83,6.214]
[1748949902287,0.0409278,160.85,160.82,6.40020555]
[1748949902498,31.42,160.9,160.84,6.40020555]
[1748949902689,31.42,160.9,160.88,6.212]
[1748949903090,6.2118,160.89,160.84,12.19581873]
[1748949903499,0.03994823,160.88,160.85,0.04469236]
[1748949903996,0.03994823,160.88,160.87,6.2123]
[1748949907903,31.42,160.93,160.86,12.20552838]
[1748949908106,31.42,160.93,160.88,6.40020555]
[1748949908305,31.42,160.93,160.88,12.20552838]
[1748949909008,0.04522935,160.92,160.89,0.04003985]
[1748949909508,0.04522935,160.92,160.91,6.2111]
[1748949917613,31.24,160.99,160.96,6.2088]
[1748949918816,31.28481461,160.99,160.96,6.25008428]
[1748949919011,31.28481461,160.99,160.97,6.2087]
[1748949919410,0.04481461,160.99,160.96,0.04128428]
[1748949919714,0.04481461,160.99,160.98,6.2084]
[1748949922618,0.04481461,160.99,160.96,0.04128428]
[1748949923114,6.25301461,160.99,160.97,6.2087]
[1748949924713,0.04481461,160.99,160.97,6.2087]
[1748949925721,0.04481461,160.99,160.98,6.2084]
[1748949926514,0.04481461,160.99,160.97,6.2086]
[1748949929823,0.04481461,160.99,160.96,0.04128428]
[1748949930024,0.04481461,160.99,160.97,6.40020555]
[1748949931027,0.04481461,160.99,160.98,6.2084]
[1748949931533,31.22,161.05,160.97,6.40020555]
[1748949931829,31.22,161.05,160.99,6.40020555]
[1748949932029,6.2063,161.04,161.01,6.207]
[1748949932326,6.25283416,161.04,161.01,6.24801409]
[1748949935124,6.2065,161.03,161.01,0.04101409]
[1748949935632,6.2065,161.03,161.01,6.24801409]
[1748949935822,6.25273416,161.04,161.01,6.24801409]
[1748949937834,6.25273416,161.04,161.02,6.2067]
[1748949938130,6.25273416,161.04,161.01,0.04101409]
[1748949938831,6.25273416,161.04,161.01,6.24801409]
[1748949939030,6.2065,161.03,161.01,6.24801409]
[1748949941432,6.25273416,161.04,161.01,6.24801409]
[1748949941936,6.25273416,161.04,161.02,6.2068]
[1748949942540,6.25273416,161.04,161.01,6.24801409]
[1748949942833,6.25273416,161.04,161.01,0.04101409]
[1748949942834,6.40020555,161.02,161.01,0.04101409]
[1748949943137,6.2077,161.0,160.95,31.24]
[1748949943537,31.22,161.01,160.92,33.2799]
[1748949943740,6.2082,160.99,160.93,6.40020555]
[1748949944135,6.2082,160.99,160.96,6.2088]
[1748949944136,0.04497083,160.98,160.96,6.2088]
[1748949946134,0.04497083,160.98,160.97,6.2088]
[1748949950645,0.04497083,160.98,160.96,6.209]
[1748949950846,0.04497083,160.98,160.94,0.04406735]
[1748949952143,0.04497083,160.98,160.97,6.2088]
[1748949955554,0.04497083,160.98,160.94,0.04406735]
[1748949955555,6.44517638,160.98,160.94,0.04406735]
[1748949956546,0.04497083,160.98,160.94,0.04406735]
[1748949957143,6.44517638,160.98,160.94,0.04406735]
[1748949957449,6.2088,160.97,160.94,6.25366735]
[1748949957953,12.65367638,160.98,160.95,6.2094]
[1748949958249,6.44517638,160.98,160.95,6.2094]
[1748949958547,6.44517638,160.98,160.96,6.2091]
[1748949960549,12.65357638,160.98,160.96,6.2091]
[1748949961150,12.65357638,160.98,160.94,0.04406735]
[1748949961151,4.09167591,160.97,160.95,6.2094]
[1748949961356,4.09167591,160.96,160.95,6.2094]
[1748949962251,6.209,160.97,160.94,0.04406735]
[1748949962458,4.09167591,160.96,160.94,0.04406735]
[1748949962651,4.09167591,160.96,160.95,6.2094]
[1748949962850,4.09167591,160.96,160.94,0.04406735]
[1748949963754,4.09167591,160.96,160.94,6.25366735]
[1748949963954,4.09167591,160.96,160.94,0.04406735]
[1748949964758,4.09167591,160.96,160.95,6.2095]
[1748949965158,4.09167591,160.96,160.94,0.04406735]
[1748949965159,4.09167591,160.97,160.94,0.04406735]
[1748949965456,4.09167591,160.97,160.96,6.2091]
[1748949974661,0.04497083,160.98,160.97,6.2088]
[1748949974865,4.13664674,160.98,160.97,6.2088]
[1748949976065,0.04497083,160.98,160.97,6.2088]
[1748949976465,122.1266,161.03,160.97,6.2088]
[1748949976466,7.72703665,161.07,160.97,4.09167591]
[1748949976666,41.37777591,161.04,160.99,4.09167591]
[1748949976965,41.37777591,161.04,161.0,4.09167591]
[1748949977162,41.37777591,161.04,161.01,6.2071]
[1748949977560,10.29827591,161.03,161.01,6.24672675]
[1748949978262,4.09167591,161.02,161.01,6.24672675]
[1748949978471,4.09167591,161.02,161.01,0.03962675]
[1748949978968,4.09167591,161.03,161.01,0.03962675]
[1748949979270,31.12022406,161.04,161.01,0.03962675]
[1748949979660,0.04022406,161.04,161.01,0.03962675]
[1748949980061,0.04022406,161.04,161.03,6.2064]
[1748949980469,0.04022406,161.04,161.01,0.03962675]
[1748949980770,0.04022406,161.04,161.02,6.2067]
[1748949981370,6.24652406,161.04,161.02,6.2067]
[1748949981572,6.24652406,161.04,161.01,0.03962675]
[1748949982770,0.04022406,161.04,161.01,0.03962675]
[1748949982974,6.38637645,161.02,161.01,0.03962675]
[1748949983174,6.38637645,161.02,161.01,0.00731113]
[1748949983376,12.59317645,161.02,161.01,0.00731113]
[1748949988372,6.2068,161.02,161.01,0.00731113]
[1748949988579,31.08,161.03,161.01,0.00731113]
[1748949989278,31.08,161.03,161.02,6.2068]
[1748949989482,31.08,161.03,161.01,0.00731113]
[1748949989679,37.2866,161.03,161.01,0.00731113]
[1748949989880,31.08,161.03,161.01,0.00731113]
[1748949990479,12.59317645,161.02,161.01,0.00731113]
[1748949992182,6.2079,161.0,160.97,6.2086]
[1748949992486,12.59427645,161.0,160.95,129.3644481]
[1748949992883,6.38637645,161.0,160.94,5.79630085]
[1748949993283,6.38637645,161.0,160.95,0.04437202]
[1748949993284,0.04594591,160.99,160.95,0.04437202]
[1748949993989,0.04594591,160.99,160.98,6.2082]
[1748949995584,0.04594591,160.99,160.97,6.2086]
[1748949996185,0.04594591,160.99,160.95,0.04437202]
[1748949996186,0.04594591,160.99,160.96,6.209]
[1748949996386,6.38637645,160.98,160.95,0.04437202]
[1748949996588,12.59497645,160.98,160.95,0.04437202]
[1748949996790,12.59497645,160.98,160.95,6.25367202]
[1748949997290,6.38637645,160.98,160.95,0.04437202]
[1748949998190,6.38637645,160.98,160.95,6.25377202]
[1748949998778,6.2085,160.98,160.95,6.25377202]
[1748949998979,6.38637645,160.98,160.95,6.25377202]
[1748950000086,6.2088,160.97,160.95,6.25377202]
[1748950000287,6.38637645,160.98,160.95,0.04437202]
[1748950000495,12.59547645,160.96,160.95,0.04437202]
[1748950003496,6.38637645,160.96,160.95,0.04437202]
[1748950004000,6.38637645,160.96,160.95,6.25387202]
[1748950006091,6.38637645,160.98,160.95,0.04437202]
[1748950006790,12.59477645,160.98,160.95,0.04437202]
[1748950006986,6.38637645,160.98,160.95,0.04437202]
[1748950007194,6.38637645,160.98,160.96,6.2089]
[1748950007394,12.59477645,160.98,160.96,6.2089]
[1748950007892,6.38637645,160.98,160.97,6.2088]
[1748950008791,31.12594591,160.99,160.98,6.2084]
[1748950012791,31.12594591,160.99,160.95,0.04437202]
[1748950012792,37.51232236,160.99,160.95,0.04437202]
[1748950012999,6.38637645,160.96,160.95,0.04437202]
[1748950013499,12.59547645,160.96,160.95,0.04437202]
[1748950014800,6.38637645,160.96,160.95,0.04437202]
[1748950014997,6.209,160.97,160.95,0.04437202]
[1748950015203,6.38637645,160.98,160.95,0.04437202]
[1748950015402,12.59497645,160.98,160.96,6.2091]
[1748950017904,6.38637645,160.98,160.96,6.2091]
[1748950018103,6.38637645,160.98,160.95,0.04437202]
[1748950018104,6.38637645,160.98,160.97,6.2088]
[1748950018604,6.38637645,160.98,160.95,0.04437202]
[1748950018807,6.38637645,160.98,160.96,6.2091]
[1748950019207,6.38637645,160.98,160.95,0.04437202]
[1748950019407,31.12594591,160.99,160.95,0.04437202]
[1748950020703,31.12594591,160.99,160.97,6.2084]
[1748950020905,31.12594591,160.99,160.95,0.04437202]
[1748950021506,6.2086,160.98,160.95,0.04437202]
[1748950022012,6.2086,160.98,160.95,6.25357202]
[1748950022813,37.33404591,160.99,160.96,6.2091]
[1748950023120,37.51232236,160.99,160.95,0.04437202]
[1748950023318,37.51232236,160.99,160.97,6.2086]
[1748950023515,37.51232236,160.99,160.95,0.04437202]
[1748950024013,37.51232236,160.99,160.97,6.2085]
[1748950024706,37.51232236,160.99,160.95,0.04437202]
[1748950025108,31.12594591,160.99,160.95,0.04437202]
[1748950025316,31.12594591,160.99,160.97,6.2085]
[1748950026416,31.12594591,160.99,160.98,6.2084]
[1748950030021,31.12594591,160.99,160.97,6.2086]
[1748950031122,37.33404591,160.99,160.97,6.2086]
[1748950031720,31.12594591,160.99,160.98,6.2084]
[1748950033422,0.04594591,160.99,160.98,6.2084]
[1748950034419,0.04594591,160.99,160.95,0.04437202]
[1748950035219,6.2085,160.98,160.96,6.2089]
[1748950036926,0.04594591,160.99,160.95,0.04437202]
[1748950037126,0.04594591,160.99,160.95,5.84775134]
[1748950038729,0.04594591,160.99,160.98,6.2084]
[1748950042831,44.78953665,161.08,160.97,37.24637645]
[1748950043031,43.44887645,161.08,160.99,6.38637645]
[1748950043231,6.2049,161.07,160.99,6.38637645]
[1748950043528,6.2049,161.07,161.04,6.2057]
[1748950043925,6.24736639,161.07,161.04,0.0433142]
[1748950044129,6.2054,161.06,161.04,0.0433142]
[1748950046126,6.38637645,161.06,160.97,5.79325652]
[1748950046428,6.38637645,161.03,160.97,5.79325652]
[1748950046628,6.2069,161.02,160.97,5.79325652]
[1748950046928,6.2069,161.02,160.96,38.77045652]
[1748950047120,0.04518376,161.01,161.0,6.2076]
[1748950051434,0.04518376,161.01,160.97,0.04488677]
[1748950051631,6.25248376,161.01,160.97,0.04488677]
[1748950052530,6.25248376,161.01,160.99,6.2078]
[1748950052730,0.04518376,161.01,160.99,6.2078]
[1748950054334,6.25248376,161.01,160.99,6.2078]
[1748950055333,0.04518376,161.01,161.0,6.2076]
[1748950058040,0.04518376,161.01,161.0,6.2076]
[1748950064956,0.04518376,161.01,160.99,6.2079]
[1748950064957,6.25238376,161.01,160.99,6.2079]
[1748950066054,6.25238376,161.01,160.97,6.25338677]
[1748950066262,0.04518376,161.01,160.97,0.04488677]
[1748950066652,37.24637645,161.0,160.97,0.04488677]
[1748950066857,6.38637645,160.98,160.93,6.2103]
[1748950067364,6.2099,160.95,160.91,5.79046451]
[1748950067557,6.38637645,160.98,160.91,5.79046451]
[1748950067961,6.25066825,160.96,160.93,6.2558513]
[1748950069467,6.2096,160.95,160.93,6.2558513]
[1748950069666,0.04116825,160.96,160.93,6.2558513]
[1748950069868,6.2096,160.95,160.93,6.2558513]
[1748950071971,6.2096,160.95,160.93,0.0457513]
[1748950072672,6.2099,160.94,160.93,0.0457513]
[1748950074172,6.2097,160.95,160.93,0.0457513]
[1748950074668,6.2097,160.95,160.93,6.2560513]
[1748950077562,0.04116825,160.96,160.93,0.0457513]
[1748950078470,0.04116825,160.96,160.95,6.2095]
[1748950082973,0.04116825,160.96,160.94,6.2098]
[1748950084780,0.04116825,160.96,160.95,6.2095]
[1748950095087,6.25046825,160.96,160.94,6.2097]
[1748950095480,0.04116825,160.96,160.94,6.2097]
[1748950096789,30.86,160.95,160.93,0.0457513]
[1748950096992,6.2099,160.94,160.93,0.0457513]
[1748950098282,37.0697,160.95,160.93,0.0457513]
[1748950098479,30.86,160.95,160.93,0.0457513]
[1748950098680,30.86,160.95,160.94,6.2099]
[1748950100487,30.86,160.95,160.93,0.0457513]
[1748950100889,30.86,160.95,160.93,6.2559513]
[1748950101090,37.0696,160.95,160.93,6.2559513]
[1748950101291,37.0696,160.95,160.93,0.0457513]
[1748950102889,6.2099,160.94,160.93,0.0457513]
[1748950103890,37.0697,160.95,160.93,6.2560513]
[1748950104090,30.86,160.95,160.93,0.0457513]
[1748950104999,6.2099,160.94,160.93,0.0457513]
[1748950117009,30.86,160.95,160.93,0.0457513]
[1748950118009,6.2099,160.94,160.93,0.0457513]
[1748950119306,10.30306857,160.94,160.93,0.0457513]
[1748950127000,6.2099,160.94,160.93,0.0457513]
[1748950127203,10.30306857,160.94,160.93,0.0457513]
[1748950139525,41.16306857,160.94,160.93,0.0457513]
[1748950141419,6.0841,160.95,160.93,0.0457513]
[1748950141621,30.86,160.94,160.93,0.0457513]
[1748950142332,30.86,160.94,160.93,6.2560513]
[1748950151745,41.16306857,160.94,160.93,0.0457513]
[1748950152445,34.95316857,160.94,160.93,0.0457513]
[1748950152946,30.86,160.94,160.93,0.0457513]
[1748950161860,37.0699,160.94,160.93,0.0457513]
[1748950162459,41.16306857,160.94,160.93,0.0457513]
[1748950165256,30.86,160.94,160.93,0.0457513]
[1748950165760,30.86,160.94,160.93,6.2560513]
[1748950169461,0.04116825,160.96,160.95,6.2095]
[1748950169662,0.04116825,160.96,160.95,10.30266857]
[1748950172362,0.04116825,160.96,160.95,6.2095]
[1748950181069,0.04116825,160.96,160.95,10.30266857]
[1748950183374,0.04116825,160.96,160.95,4.09316857]
[1748950183871,0.04116825,160.96,160.95,10.30266857]
[1748950186576,0.04116825,160.96,160.95,4.09316857]
[1748950189582,0.04116825,160.96,160.95,10.30266857]
[1748950191380,30.82,161.01,161.0,6.2076]
[1748950191577,30.82,161.01,161.0,10.30076857]
[1748950191773,6.2066,161.03,161.0,10.30076857]
[1748950191975,6.2066,161.03,161.01,4.09316857]
[1748950192481,6.2066,161.03,161.01,10.30026857]
[1748950193381,6.2066,161.03,161.0,10.34142409]
[1748950195082,6.2066,161.03,161.01,4.09316857]
[1748950195684,6.2068,161.02,161.01,4.09316857]
[1748950196082,6.2068,161.02,161.0,10.34142409]
[1748950196283,6.2066,161.03,161.0,10.34142409]
[1748950196483,126.59528752,161.04,161.01,10.30026857]
[1748950196779,126.59528752,161.04,161.01,4.09316857]
[1748950197083,30.85993254,161.04,161.02,10.29986857]
[1748950198681,0.03993254,161.04,161.03,10.29956857]
[1748950200282,0.03993254,161.04,161.0,30.86085552]
[1748950200485,4.13310111,161.04,161.0,4.13402409]
[1748950200690,4.09316857,161.02,161.0,0.04085552]
[1748950200882,4.09316857,161.01,161.0,0.04085552]
[1748950201077,4.09316857,161.01,160.94,36.60222245]
[1748950201284,6.39243604,161.01,160.94,30.82]
[1748950201490,6.2082,160.99,160.93,154.54567337]
[1748950201687,6.2082,160.99,160.93,148.76345092]
[1748950201881,30.82,161.0,160.93,148.76345092]
[1748950202083,6.24812972,160.98,160.95,0.04057023]
[1748950202487,6.24812972,160.98,160.96,6.2091]
[1748950202687,0.03942972,160.98,160.96,6.2091]
[1748950203687,0.03942972,160.98,160.97,6.2088]
[1748950204092,0.03942972,160.98,160.95,0.04057023]
[1748950204389,0.03942972,160.98,160.96,6.2089]
[1748950205185,0.03942972,160.98,160.95,0.04057023]
[1748950205890,0.03942972,160.98,160.96,6.2089]
[1748950207688,0.03942972,160.98,160.97,6.2088]
[1748950209297,0.03942972,160.98,160.96,6.209]
[1748950209691,0.03942972,160.98,160.95,0.04057023]
[1748950210594,0.03942972,160.98,160.97,6.2087]
[1748950228101,6.24802972,160.98,160.95,6.24977023]
[1748950228305,0.03942972,160.98,160.95,6.24977023]
[1748950228901,6.24792972,160.98,160.95,6.24977023]
[1748950229296,10.33921091,160.98,160.95,10.34105142]
[1748950229499,4.09128119,160.96,160.95,0.04057023]
[1748950230505,10.30038119,160.96,160.95,0.04057023]
[1748950231209,6.2091,160.96,160.95,0.04057023]
[1748950232209,30.8,160.96,160.9,5.79814475]
[1748950232403,6.39509893,160.95,160.89,5.79814475]
[1748950232605,126.07509893,160.95,160.88,5.79814475]
[1748950232800,126.07509893,160.95,160.89,6.2116]
[1748950233213,126.07509893,160.95,160.9,6.2112]
[1748950233507,6.2109,160.92,160.9,0.04481146]
[1748950234308,6.2111,160.91,160.9,0.04481146]
[1748950234909,37.0109,160.92,160.9,0.04481146]
[1748950239410,6.2111,160.91,160.9,0.04481146]
[1748950240210,12.60619893,160.91,160.9,0.04481146]
[1748950245812,6.2118,160.89,160.87,6.2125]
[1748950247415,0.04363227,160.9,160.88,6.212]
[1748950247620,0.04363227,160.9,160.86,0.04631691]
[1748950248121,0.04363227,160.9,160.89,6.2118]
[1748950265254,6.25513227,160.9,160.88,10.30597696]
[1748950265555,0.04363227,160.9,160.88,4.09387696]
[1748950267054,0.04363227,160.9,160.89,6.2118]
[1748950268649,536.78,160.97,160.89,4.09387696]
[1748950268856,536.78,160.97,160.95,4.09387696]
[1748950269160,6.209,160.97,160.95,4.09387696]
[1748950269451,6.209,160.97,160.95,10.30307696]
[1748950269856,37.05597404,160.98,160.96,6.2091]
[1748950270157,30.84747404,160.98,160.96,4.09387696]
[1748950270359,30.84747404,160.98,160.96,10.30277696]
[1748950270659,30.84747404,160.98,160.97,4.09387696]
[1748950270955,30.84747404,160.98,160.97,6.2088]
[1748950271159,30.84747404,160.98,160.97,10.30267696]
[1748950271361,30.84747404,160.98,160.97,6.2088]
[1748950271857,0.04747404,160.98,160.97,6.2088]
[1748950273360,0.04747404,160.98,160.97,12.59925236]
[1748950275165,30.8,161.01,161.0,6.2076]
[1748950275552,6.2066,161.03,161.0,6.2076]
[1748950275753,6.2069,161.02,161.0,6.2076]
[1748950275951,30.8,161.04,160.99,6.2079]
[1748950276163,6.2069,161.02,160.99,0.04118185]
[1748950277064,6.2069,161.02,161.0,6.2075]
[1748950277567,6.24914909,161.03,161.0,6.2075]
[1748950277968,6.207,161.02,160.99,6.24898185]
[1748950280059,6.2072,161.01,160.99,0.04118185]
[1748950280254,0.04254909,161.03,160.99,0.04118185]
[1748950280255,6.39045236,161.02,160.99,0.04118185]
[1748950280668,6.2076,161.0,160.99,0.04118185]
[1748950282666,6.2074,161.01,160.99,0.04118185]
[1748950284064,0.04254909,161.03,160.99,0.04118185]
[1748950284460,0.04254909,161.03,161.0,6.39045236]
[1748950284662,0.04254909,161.03,161.02,6.2068]
[1748950285258,0.04254909,161.03,160.99,0.04118185]
[1748950285866,6.2073,161.01,160.99,0.04118185]
[1748950286861,0.04254909,161.03,160.99,0.04118185]
[1748950288672,6.2075,161.01,160.99,0.04118185]
[1748950289474,6.207,161.02,160.99,6.24898185]
[1748950290073,6.2073,161.01,160.99,6.24898185]
[1748950290271,6.2073,161.01,160.99,0.04118185]
[1748950291875,6.2076,161.0,160.99,0.04118185]
[1748950292075,6.39045236,161.01,160.94,30.8]
[1748950292380,6.39045236,160.99,160.92,4.3057]
[1748950293074,6.25321984,160.97,160.94,6.25449458]
[1748950295480,6.25321984,160.97,160.95,6.2095]
[1748950295874,6.2091,160.96,160.94,0.04479458]
[1748950297079,6.2091,160.96,160.94,6.25449458]
[1748950297275,6.25311984,160.97,160.94,0.04479458]
[1748950297785,6.2092,160.96,160.94,6.25449458]
[1748950297974,0.04421984,160.97,160.94,6.25449458]
[1748950298174,0.04421984,160.97,160.94,0.04479458]
[1748950298578,6.2093,160.96,160.94,0.04479458]
[1748950300878,6.2095,160.95,160.94,0.04479458]
[1748950301981,6.4346722,160.97,160.94,0.04479458]
[1748950301982,6.2093,160.96,160.94,0.04479458]
[1748950303374,0.04421984,160.97,160.94,0.04479458]
[1748950303983,0.04421984,160.97,160.95,6.2095]
[1748950304388,0.04421984,160.97,160.96,6.2091]
[1748950332812,4.13487867,160.97,160.94,0.04479458]
[1748950333015,4.09065883,160.95,160.94,0.04479458]
[1748950333315,4.09065883,160.95,160.91,5.79718138]
[1748950333316,34.85065883,160.95,160.91,5.79718138]
[1748950333505,10.30135883,160.92,160.88,5.79718138]
[1748950333809,4.09065883,160.91,160.89,6.2116]
[1748950334112,4.09065883,160.91,160.87,9.88784021]
[1748950334304,4.13208677,160.91,160.87,9.93834859]
[1748950334802,4.13208677,160.91,160.9,6.2114]
[1748950335002,4.13208677,160.91,160.87,4.13411512]
[1748950335211,0.04142794,160.91,160.88,6.212]
[1748950335410,30.80142794,160.91,160.87,0.04345629]
[1748950335710,6.39866363,160.88,160.87,0.04345629]
[1748950336011,6.39866363,160.88,160.82,5.80494187]
[1748950336209,30.76,160.87,160.84,6.2134]
[1748950337014,30.79973487,160.87,160.84,0.04427314]
[1748950337509,30.79973487,160.87,160.85,6.2131]
[1748950338408,37.01233487,160.87,160.84,6.25787314]
[1748950338612,30.79973487,160.87,160.84,0.04427314]
[1748950339313,30.79973487,160.87,160.85,6.2134]
[1748950339612,30.79973487,160.87,160.84,0.04427314]
[1748950339810,30.79973487,160.87,160.85,6.2133]
[1748950341113,37.01233487,160.87,160.84,6.25787314]